{"text_format":"1","workbook":"xlsx","n_sheets":2,"sheets":["% от прибыли","% от валового"],"not_rendered":{"charts":0,"images":0,"macros":1,"external_links":0,"defined_names":0,"comments":0,"pivot_tables":0},"unopened":[],"bounds":{"document_bytes":16777216,"sheet_cells":100000,"rows_first":2000,"rows_last":500,"rows_between":2000,"halvings":0,"cell_chars":16384,"cell_head_chars":4096},"cells_cut":0,"cells_raw":0,"read":"whole","date_system":"1900"}

{"sheet":"% от прибыли","index":0,"n_rows":26,"n_cols":10,"rows_kept":26,"cut":false,"hidden":false,"merged":[]}
["Валовый оборот",250000]
[]
["Минус закупки",{"$f":"Table3[Потрачено]","v":0}]
["Прибыль",{"$f":"B1-B3","v":250000}]
[]
[]
["Статья расхода","Макс. % от прибыли","Макс. От прибыли","Потрачено","Остаток","В фонде"]
["Зар. Плата",0.38,{"$f":"$B$4*Таблица1[[#This Row],[Макс. % от прибыли]]","v":95000},null,{"$f":"Таблица1[[#This Row],[Макс. От прибыли]]-Таблица1[[#This Row],[Потрачено]]","v":95000}]
["Содержание",0.1,{"$f":"$B$4*Таблица1[[#This Row],[Макс. % от прибыли]]","v":25000},null,{"$f":"Таблица1[[#This Row],[Макс. От прибыли]]-Таблица1[[#This Row],[Потрачено]]","v":25000}]
["Реклама",0.02,{"$f":"$B$4*Таблица1[[#This Row],[Макс. % от прибыли]]","v":5000},null,{"$f":"Таблица1[[#This Row],[Макс. От прибыли]]-Таблица1[[#This Row],[Потрачено]]","v":5000}]
["Налоги",0.1,{"$f":"$B$4*Таблица1[[#This Row],[Макс. % от прибыли]]","v":25000},null,{"$f":"Таблица1[[#This Row],[Макс. От прибыли]]-Таблица1[[#This Row],[Потрачено]]","v":25000}]
["Разовые расходы",0.02,{"$f":"$B$4*Таблица1[[#This Row],[Макс. % от прибыли]]","v":5000},null,{"$f":"Таблица1[[#This Row],[Макс. От прибыли]]-Таблица1[[#This Row],[Потрачено]]","v":5000}]
[null,null,{"$f":"$B$4*Таблица1[[#This Row],[Макс. % от прибыли]]","v":0},null,{"$f":"Таблица1[[#This Row],[Макс. От прибыли]]-Таблица1[[#This Row],[Потрачено]]","v":0}]
[null,null,{"$f":"$B$4*Таблица1[[#This Row],[Макс. % от прибыли]]","v":0},null,{"$f":"Таблица1[[#This Row],[Макс. От прибыли]]-Таблица1[[#This Row],[Потрачено]]","v":0}]
[null,null,{"$f":"$B$4*Таблица1[[#This Row],[Макс. % от прибыли]]","v":0},null,{"$f":"Таблица1[[#This Row],[Макс. От прибыли]]-Таблица1[[#This Row],[Потрачено]]","v":0}]
["Фонд организации",{"$f":"SUBTOTAL(109,B8:B15)","v":0.62},{"$f":"SUM(C8:C15)","v":155000},{"$f":"SUM(D8:D15)","v":0},{"$f":"SUM(E8:E15)","v":155000},{"$f":"SUM(F8:F15)","v":0},null,null,null," "]
[]
["Статья расхода","Макс. % от прибыли","Макс. От прибыли","Потрачено","Остаток","В фонде"]
["Дивиденды",0.2,{"$f":"$B$4*Таблица2[[#This Row],[Макс. % от прибыли]]","v":50000},{"$f":"SUM(D16:D18)","v":0},{"$f":"Таблица2[[#This Row],[Макс. От прибыли]]-Таблица2[[#This Row],[Потрачено]]","v":50000}]
["Строит. Фонд",0.2,{"$f":"$B$4*Таблица2[[#This Row],[Макс. % от прибыли]]","v":50000},0,{"$f":"Таблица2[[#This Row],[Макс. От прибыли]]-Таблица2[[#This Row],[Потрачено]]","v":50000}]
["Резервный фонд",0.01,{"$f":"$B$4*Таблица2[[#This Row],[Макс. % от прибыли]]","v":2500},0,{"$f":"Таблица2[[#This Row],[Макс. От прибыли]]-Таблица2[[#This Row],[Потрачено]]","v":2500}]
["Фонд учредителя",{"$f":"SUBTOTAL(109,B19:B21)","v":0.41000000000000003},{"$f":"$B$4*Таблица2[[#This Row],[Макс. % от прибыли]]","v":102500.00000000001},0,{"$f":"Таблица2[[#This Row],[Макс. От прибыли]]-Таблица2[[#This Row],[Потрачено]]","v":102500.00000000001},{"$f":"SUM(F19:F21)","v":0}]
[]
[]
["Статья расхода","Макс. % от валового","Макс. От валового","Потрачено","Остаток","В фонде"]
["Закупки",0.17,{"$f":"Table3[Макс. % от валового]*B1","v":42500},null,{"$f":"Table3[Макс. От валового]-Table3[Потрачено]","v":42500}]

{"sheet":"% от валового","index":1,"n_rows":36,"n_cols":11,"rows_kept":36,"cut":false,"hidden":false,"merged":[[0,1,1,2],[0,3,1,4],[0,5,1,5],[0,6,1,7]]}
[null,"Валовый доход",null,null,null,"Период"]
[]
[]
[null,null,"                         План",null,"                        Факт",null,"                     Осталось в запасе",null,null,null,"автоматически"]
[null,"Статья расхода","Сумма","%","Сумма","%","Сумма","%",null,null,"вручную"]
[null,null,{"$f":"IF(Таблица5[[#This Row],[Столбец3]]*$D$1=0,\"\",Таблица5[[#This Row],[Столбец3]]*$D$1)","v":""},null,null,{"$f":"IFERROR(IF(Таблица5[[#This Row],[Столбец4]]/$D$1=0,\"\",Таблица5[[#This Row],[Столбец4]]/$D$1),\"\")","v":""},{"$f":"IFERROR(Таблица5[[#This Row],[Столбец2]]-Таблица5[[#This Row],[Столбец4]],\"\")","v":""},{"$f":"IFERROR(Таблица5[[#This Row],[Столбец3]]-Таблица5[[#This Row],[Столбец5]],\"\")","v":""}]
[null,null,{"$f":"IF(Таблица5[[#This Row],[Столбец3]]*$D$1=0,\"\",Таблица5[[#This Row],[Столбец3]]*$D$1)","v":""},null,null,{"$f":"IFERROR(IF(Таблица5[[#This Row],[Столбец4]]/$D$1=0,\"\",Таблица5[[#This Row],[Столбец4]]/$D$1),\"\")","v":""},{"$f":"IFERROR(Таблица5[[#This Row],[Столбец2]]-Таблица5[[#This Row],[Столбец4]],\"\")","v":""},{"$f":"IFERROR(Таблица5[[#This Row],[Столбец3]]-Таблица5[[#This Row],[Столбец5]],\"\")","v":""}]
[null,null,{"$f":"IF(Таблица5[[#This Row],[Столбец3]]*$D$1=0,\"\",Таблица5[[#This Row],[Столбец3]]*$D$1)","v":""},null,null,{"$f":"IFERROR(IF(Таблица5[[#This Row],[Столбец4]]/$D$1=0,\"\",Таблица5[[#This Row],[Столбец4]]/$D$1),\"\")","v":""},{"$f":"IFERROR(Таблица5[[#This Row],[Столбец2]]-Таблица5[[#This Row],[Столбец4]],\"\")","v":""},{"$f":"IFERROR(Таблица5[[#This Row],[Столбец3]]-Таблица5[[#This Row],[Столбец5]],\"\")","v":""}]
[null,null,{"$f":"IF(Таблица5[[#This Row],[Столбец3]]*$D$1=0,\"\",Таблица5[[#This Row],[Столбец3]]*$D$1)","v":""},null,null,{"$f":"IFERROR(IF(Таблица5[[#This Row],[Столбец4]]/$D$1=0,\"\",Таблица5[[#This Row],[Столбец4]]/$D$1),\"\")","v":""},{"$f":"IFERROR(Таблица5[[#This Row],[Столбец2]]-Таблица5[[#This Row],[Столбец4]],\"\")","v":""},{"$f":"IFERROR(Таблица5[[#This Row],[Столбец3]]-Таблица5[[#This Row],[Столбец5]],\"\")","v":""}]
[null,null,{"$f":"IF(Таблица5[[#This Row],[Столбец3]]*$D$1=0,\"\",Таблица5[[#This Row],[Столбец3]]*$D$1)","v":""},null,null,{"$f":"IFERROR(IF(Таблица5[[#This Row],[Столбец4]]/$D$1=0,\"\",Таблица5[[#This Row],[Столбец4]]/$D$1),\"\")","v":""},{"$f":"IFERROR(Таблица5[[#This Row],[Столбец2]]-Таблица5[[#This Row],[Столбец4]],\"\")","v":""},{"$f":"IFERROR(Таблица5[[#This Row],[Столбец3]]-Таблица5[[#This Row],[Столбец5]],\"\")","v":""}]
[null,null,{"$f":"IF(Таблица5[[#This Row],[Столбец3]]*$D$1=0,\"\",Таблица5[[#This Row],[Столбец3]]*$D$1)","v":""},null,null,{"$f":"IFERROR(IF(Таблица5[[#This Row],[Столбец4]]/$D$1=0,\"\",Таблица5[[#This Row],[Столбец4]]/$D$1),\"\")","v":""},{"$f":"IFERROR(Таблица5[[#This Row],[Столбец2]]-Таблица5[[#This Row],[Столбец4]],\"\")","v":""},{"$f":"IFERROR(Таблица5[[#This Row],[Столбец3]]-Таблица5[[#This Row],[Столбец5]],\"\")","v":""}]
[null,null,{"$f":"IF(Таблица5[[#This Row],[Столбец3]]*$D$1=0,\"\",Таблица5[[#This Row],[Столбец3]]*$D$1)","v":""},null,null,{"$f":"IFERROR(IF(Таблица5[[#This Row],[Столбец4]]/$D$1=0,\"\",Таблица5[[#This Row],[Столбец4]]/$D$1),\"\")","v":""},{"$f":"IFERROR(Таблица5[[#This Row],[Столбец2]]-Таблица5[[#This Row],[Столбец4]],\"\")","v":""},{"$f":"IFERROR(Таблица5[[#This Row],[Столбец3]]-Таблица5[[#This Row],[Столбец5]],\"\")","v":""}]
[null,null,{"$f":"IF(Таблица5[[#This Row],[Столбец3]]*$D$1=0,\"\",Таблица5[[#This Row],[Столбец3]]*$D$1)","v":""},null,null,{"$f":"IFERROR(IF(Таблица5[[#This Row],[Столбец4]]/$D$1=0,\"\",Таблица5[[#This Row],[Столбец4]]/$D$1),\"\")","v":""},{"$f":"IFERROR(Таблица5[[#This Row],[Столбец2]]-Таблица5[[#This Row],[Столбец4]],\"\")","v":""},{"$f":"IFERROR(Таблица5[[#This Row],[Столбец3]]-Таблица5[[#This Row],[Столбец5]],\"\")","v":""}]
[null,null,{"$f":"IF(Таблица5[[#This Row],[Столбец3]]*$D$1=0,\"\",Таблица5[[#This Row],[Столбец3]]*$D$1)","v":""},null,null,{"$f":"IFERROR(IF(Таблица5[[#This Row],[Столбец4]]/$D$1=0,\"\",Таблица5[[#This Row],[Столбец4]]/$D$1),\"\")","v":""},{"$f":"IFERROR(Таблица5[[#This Row],[Столбец2]]-Таблица5[[#This Row],[Столбец4]],\"\")","v":""},{"$f":"IFERROR(Таблица5[[#This Row],[Столбец3]]-Таблица5[[#This Row],[Столбец5]],\"\")","v":""}]
[null,null,{"$f":"IF(Таблица5[[#This Row],[Столбец3]]*$D$1=0,\"\",Таблица5[[#This Row],[Столбец3]]*$D$1)","v":""},null,null,{"$f":"IFERROR(IF(Таблица5[[#This Row],[Столбец4]]/$D$1=0,\"\",Таблица5[[#This Row],[Столбец4]]/$D$1),\"\")","v":""},{"$f":"IFERROR(Таблица5[[#This Row],[Столбец2]]-Таблица5[[#This Row],[Столбец4]],\"\")","v":""},{"$f":"IFERROR(Таблица5[[#This Row],[Столбец3]]-Таблица5[[#This Row],[Столбец5]],\"\")","v":""}]
[null,null,{"$f":"IF(Таблица5[[#This Row],[Столбец3]]*$D$1=0,\"\",Таблица5[[#This Row],[Столбец3]]*$D$1)","v":""},null,null,{"$f":"IFERROR(IF(Таблица5[[#This Row],[Столбец4]]/$D$1=0,\"\",Таблица5[[#This Row],[Столбец4]]/$D$1),\"\")","v":""},{"$f":"IFERROR(Таблица5[[#This Row],[Столбец2]]-Таблица5[[#This Row],[Столбец4]],\"\")","v":""},{"$f":"IFERROR(Таблица5[[#This Row],[Столбец3]]-Таблица5[[#This Row],[Столбец5]],\"\")","v":""}]
[null,null,{"$f":"IF(Таблица5[[#This Row],[Столбец3]]*$D$1=0,\"\",Таблица5[[#This Row],[Столбец3]]*$D$1)","v":""},null,null,{"$f":"IFERROR(IF(Таблица5[[#This Row],[Столбец4]]/$D$1=0,\"\",Таблица5[[#This Row],[Столбец4]]/$D$1),\"\")","v":""},{"$f":"IFERROR(Таблица5[[#This Row],[Столбец2]]-Таблица5[[#This Row],[Столбец4]],\"\")","v":""},{"$f":"IFERROR(Таблица5[[#This Row],[Столбец3]]-Таблица5[[#This Row],[Столбец5]],\"\")","v":""}]
[null,null,{"$f":"IF(Таблица5[[#This Row],[Столбец3]]*$D$1=0,\"\",Таблица5[[#This Row],[Столбец3]]*$D$1)","v":""},null,null,{"$f":"IFERROR(IF(Таблица5[[#This Row],[Столбец4]]/$D$1=0,\"\",Таблица5[[#This Row],[Столбец4]]/$D$1),\"\")","v":""},{"$f":"IFERROR(Таблица5[[#This Row],[Столбец2]]-Таблица5[[#This Row],[Столбец4]],\"\")","v":""},{"$f":"IFERROR(Таблица5[[#This Row],[Столбец3]]-Таблица5[[#This Row],[Столбец5]],\"\")","v":""}]
[null,null,{"$f":"IF(Таблица5[[#This Row],[Столбец3]]*$D$1=0,\"\",Таблица5[[#This Row],[Столбец3]]*$D$1)","v":""},null,null,{"$f":"IFERROR(IF(Таблица5[[#This Row],[Столбец4]]/$D$1=0,\"\",Таблица5[[#This Row],[Столбец4]]/$D$1),\"\")","v":""},{"$f":"IFERROR(Таблица5[[#This Row],[Столбец2]]-Таблица5[[#This Row],[Столбец4]],\"\")","v":""},{"$f":"IFERROR(Таблица5[[#This Row],[Столбец3]]-Таблица5[[#This Row],[Столбец5]],\"\")","v":""}]
[null,null,{"$f":"IF(Таблица5[[#This Row],[Столбец3]]*$D$1=0,\"\",Таблица5[[#This Row],[Столбец3]]*$D$1)","v":""},null,null,{"$f":"IFERROR(IF(Таблица5[[#This Row],[Столбец4]]/$D$1=0,\"\",Таблица5[[#This Row],[Столбец4]]/$D$1),\"\")","v":""},{"$f":"IFERROR(Таблица5[[#This Row],[Столбец2]]-Таблица5[[#This Row],[Столбец4]],\"\")","v":""},{"$f":"IFERROR(Таблица5[[#This Row],[Столбец3]]-Таблица5[[#This Row],[Столбец5]],\"\")","v":""}]
[null,null,{"$f":"IF(Таблица5[[#This Row],[Столбец3]]*$D$1=0,\"\",Таблица5[[#This Row],[Столбец3]]*$D$1)","v":""},null,null,{"$f":"IFERROR(IF(Таблица5[[#This Row],[Столбец4]]/$D$1=0,\"\",Таблица5[[#This Row],[Столбец4]]/$D$1),\"\")","v":""},{"$f":"IFERROR(Таблица5[[#This Row],[Столбец2]]-Таблица5[[#This Row],[Столбец4]],\"\")","v":""},{"$f":"IFERROR(Таблица5[[#This Row],[Столбец3]]-Таблица5[[#This Row],[Столбец5]],\"\")","v":""}]
[null,null,{"$f":"IF(Таблица5[[#This Row],[Столбец3]]*$D$1=0,\"\",Таблица5[[#This Row],[Столбец3]]*$D$1)","v":""},null,null,{"$f":"IFERROR(IF(Таблица5[[#This Row],[Столбец4]]/$D$1=0,\"\",Таблица5[[#This Row],[Столбец4]]/$D$1),\"\")","v":""},{"$f":"IFERROR(Таблица5[[#This Row],[Столбец2]]-Таблица5[[#This Row],[Столбец4]],\"\")","v":""},{"$f":"IFERROR(Таблица5[[#This Row],[Столбец3]]-Таблица5[[#This Row],[Столбец5]],\"\")","v":""}]
[null,null,{"$f":"IF(Таблица5[[#This Row],[Столбец3]]*$D$1=0,\"\",Таблица5[[#This Row],[Столбец3]]*$D$1)","v":""},null,null,{"$f":"IFERROR(IF(Таблица5[[#This Row],[Столбец4]]/$D$1=0,\"\",Таблица5[[#This Row],[Столбец4]]/$D$1),\"\")","v":""},{"$f":"IFERROR(Таблица5[[#This Row],[Столбец2]]-Таблица5[[#This Row],[Столбец4]],\"\")","v":""},{"$f":"IFERROR(Таблица5[[#This Row],[Столбец3]]-Таблица5[[#This Row],[Столбец5]],\"\")","v":""}]
[null,null,{"$f":"IF(Таблица5[[#This Row],[Столбец3]]*$D$1=0,\"\",Таблица5[[#This Row],[Столбец3]]*$D$1)","v":""},null,null,{"$f":"IFERROR(IF(Таблица5[[#This Row],[Столбец4]]/$D$1=0,\"\",Таблица5[[#This Row],[Столбец4]]/$D$1),\"\")","v":""},{"$f":"IFERROR(Таблица5[[#This Row],[Столбец2]]-Таблица5[[#This Row],[Столбец4]],\"\")","v":""},{"$f":"IFERROR(Таблица5[[#This Row],[Столбец3]]-Таблица5[[#This Row],[Столбец5]],\"\")","v":""}]
[null,null,{"$f":"IF(Таблица5[[#This Row],[Столбец3]]*$D$1=0,\"\",Таблица5[[#This Row],[Столбец3]]*$D$1)","v":""},null,null,{"$f":"IFERROR(IF(Таблица5[[#This Row],[Столбец4]]/$D$1=0,\"\",Таблица5[[#This Row],[Столбец4]]/$D$1),\"\")","v":""},{"$f":"IFERROR(Таблица5[[#This Row],[Столбец2]]-Таблица5[[#This Row],[Столбец4]],\"\")","v":""},{"$f":"IFERROR(Таблица5[[#This Row],[Столбец3]]-Таблица5[[#This Row],[Столбец5]],\"\")","v":""}]
[null,null,{"$f":"IF(Таблица5[[#This Row],[Столбец3]]*$D$1=0,\"\",Таблица5[[#This Row],[Столбец3]]*$D$1)","v":""},null,null,{"$f":"IFERROR(IF(Таблица5[[#This Row],[Столбец4]]/$D$1=0,\"\",Таблица5[[#This Row],[Столбец4]]/$D$1),\"\")","v":""},{"$f":"IFERROR(Таблица5[[#This Row],[Столбец2]]-Таблица5[[#This Row],[Столбец4]],\"\")","v":""},{"$f":"IFERROR(Таблица5[[#This Row],[Столбец3]]-Таблица5[[#This Row],[Столбец5]],\"\")","v":""}]
[null,null,{"$f":"IF(Таблица5[[#This Row],[Столбец3]]*$D$1=0,\"\",Таблица5[[#This Row],[Столбец3]]*$D$1)","v":""},null,null,{"$f":"IFERROR(IF(Таблица5[[#This Row],[Столбец4]]/$D$1=0,\"\",Таблица5[[#This Row],[Столбец4]]/$D$1),\"\")","v":""},{"$f":"IFERROR(Таблица5[[#This Row],[Столбец2]]-Таблица5[[#This Row],[Столбец4]],\"\")","v":""},{"$f":"IFERROR(Таблица5[[#This Row],[Столбец3]]-Таблица5[[#This Row],[Столбец5]],\"\")","v":""}]
[null,null,{"$f":"IF(Таблица5[[#This Row],[Столбец3]]*$D$1=0,\"\",Таблица5[[#This Row],[Столбец3]]*$D$1)","v":""},null,null,{"$f":"IFERROR(IF(Таблица5[[#This Row],[Столбец4]]/$D$1=0,\"\",Таблица5[[#This Row],[Столбец4]]/$D$1),\"\")","v":""},{"$f":"IFERROR(Таблица5[[#This Row],[Столбец2]]-Таблица5[[#This Row],[Столбец4]],\"\")","v":""},{"$f":"IFERROR(Таблица5[[#This Row],[Столбец3]]-Таблица5[[#This Row],[Столбец5]],\"\")","v":""}]
[null,null,{"$f":"IF(Таблица5[[#This Row],[Столбец3]]*$D$1=0,\"\",Таблица5[[#This Row],[Столбец3]]*$D$1)","v":""},null,null,{"$f":"IFERROR(IF(Таблица5[[#This Row],[Столбец4]]/$D$1=0,\"\",Таблица5[[#This Row],[Столбец4]]/$D$1),\"\")","v":""},{"$f":"IFERROR(Таблица5[[#This Row],[Столбец2]]-Таблица5[[#This Row],[Столбец4]],\"\")","v":""},{"$f":"IFERROR(Таблица5[[#This Row],[Столбец3]]-Таблица5[[#This Row],[Столбец5]],\"\")","v":""}]
[null,null,{"$f":"IF(Таблица5[[#This Row],[Столбец3]]*$D$1=0,\"\",Таблица5[[#This Row],[Столбец3]]*$D$1)","v":""},null,null,{"$f":"IFERROR(IF(Таблица5[[#This Row],[Столбец4]]/$D$1=0,\"\",Таблица5[[#This Row],[Столбец4]]/$D$1),\"\")","v":""},{"$f":"IFERROR(Таблица5[[#This Row],[Столбец2]]-Таблица5[[#This Row],[Столбец4]],\"\")","v":""},{"$f":"IFERROR(Таблица5[[#This Row],[Столбец3]]-Таблица5[[#This Row],[Столбец5]],\"\")","v":""}]
[null,null,{"$f":"IF(Таблица5[[#This Row],[Столбец3]]*$D$1=0,\"\",Таблица5[[#This Row],[Столбец3]]*$D$1)","v":""},null,null,{"$f":"IFERROR(IF(Таблица5[[#This Row],[Столбец4]]/$D$1=0,\"\",Таблица5[[#This Row],[Столбец4]]/$D$1),\"\")","v":""},{"$f":"IFERROR(Таблица5[[#This Row],[Столбец2]]-Таблица5[[#This Row],[Столбец4]],\"\")","v":""},{"$f":"IFERROR(Таблица5[[#This Row],[Столбец3]]-Таблица5[[#This Row],[Столбец5]],\"\")","v":""}]
[null,null,{"$f":"IF(Таблица5[[#This Row],[Столбец3]]*$D$1=0,\"\",Таблица5[[#This Row],[Столбец3]]*$D$1)","v":""},null,null,{"$f":"IFERROR(IF(Таблица5[[#This Row],[Столбец4]]/$D$1=0,\"\",Таблица5[[#This Row],[Столбец4]]/$D$1),\"\")","v":""},{"$f":"IFERROR(Таблица5[[#This Row],[Столбец2]]-Таблица5[[#This Row],[Столбец4]],\"\")","v":""},{"$f":"IFERROR(Таблица5[[#This Row],[Столбец3]]-Таблица5[[#This Row],[Столбец5]],\"\")","v":""}]
[null,null,{"$f":"IF(Таблица5[[#This Row],[Столбец3]]*$D$1=0,\"\",Таблица5[[#This Row],[Столбец3]]*$D$1)","v":""},null,null,{"$f":"IFERROR(IF(Таблица5[[#This Row],[Столбец4]]/$D$1=0,\"\",Таблица5[[#This Row],[Столбец4]]/$D$1),\"\")","v":""},{"$f":"IFERROR(Таблица5[[#This Row],[Столбец2]]-Таблица5[[#This Row],[Столбец4]],\"\")","v":""},{"$f":"IFERROR(Таблица5[[#This Row],[Столбец3]]-Таблица5[[#This Row],[Столбец5]],\"\")","v":""}]
[null,null,{"$f":"IF(Таблица5[[#This Row],[Столбец3]]*$D$1=0,\"\",Таблица5[[#This Row],[Столбец3]]*$D$1)","v":""},null,null,{"$f":"IFERROR(IF(Таблица5[[#This Row],[Столбец4]]/$D$1=0,\"\",Таблица5[[#This Row],[Столбец4]]/$D$1),\"\")","v":""},{"$f":"IFERROR(Таблица5[[#This Row],[Столбец2]]-Таблица5[[#This Row],[Столбец4]],\"\")","v":""},{"$f":"IFERROR(Таблица5[[#This Row],[Столбец3]]-Таблица5[[#This Row],[Столбец5]],\"\")","v":""}]
[null,null,{"$f":"IF(Таблица5[[#This Row],[Столбец3]]*$D$1=0,\"\",Таблица5[[#This Row],[Столбец3]]*$D$1)","v":""},null,null,{"$f":"IFERROR(IF(Таблица5[[#This Row],[Столбец4]]/$D$1=0,\"\",Таблица5[[#This Row],[Столбец4]]/$D$1),\"\")","v":""},{"$f":"IFERROR(Таблица5[[#This Row],[Столбец2]]-Таблица5[[#This Row],[Столбец4]],\"\")","v":""},{"$f":"IFERROR(Таблица5[[#This Row],[Столбец3]]-Таблица5[[#This Row],[Столбец5]],\"\")","v":""}]
[null,null,{"$f":"IF(Таблица5[[#This Row],[Столбец3]]*$D$1=0,\"\",Таблица5[[#This Row],[Столбец3]]*$D$1)","v":""},null,null,{"$f":"IFERROR(IF(Таблица5[[#This Row],[Столбец4]]/$D$1=0,\"\",Таблица5[[#This Row],[Столбец4]]/$D$1),\"\")","v":""},{"$f":"IFERROR(Таблица5[[#This Row],[Столбец2]]-Таблица5[[#This Row],[Столбец4]],\"\")","v":""},{"$f":"IFERROR(Таблица5[[#This Row],[Столбец3]]-Таблица5[[#This Row],[Столбец5]],\"\")","v":""}]